[Event "Titled Tuesday Blitz February 22 Early 2022"]
[White "Prieto Aranguren, Alain"]
[Black "Markelova, Lubov"]
[WhiteFideId "2268906"]
[BlackFideId "24131369"]
[WhiteElo "2235"]
[BlackElo "1820"]
[Result "0-1"]
[Round "04"]
[TimeControl "180+1"]
[Date "2022.02.22"]
[WhiteClock "0:00:56"]
[BlackClock "0:00:55"]

1. e4 {[%clk 0:03:00]}  e6 {[%clk 0:02:59]} 2. d4 {[%clk 0:02:59]}  d5 {[%clk 0:03:00]} 3. exd5 {[%clk 0:03:00]}  exd5 {[%clk 0:03:00]} 4. Bd3 {[%clk 0:03:00]}  Nf6 {[%clk 0:02:57]} 5. Nf3 {[%clk 0:03:01]}  Bd6 {[%clk 0:02:54]} 6. O-O {[%clk 0:03:01]}  O-O {[%clk 0:02:54]} 7. Bg5 {[%clk 0:03:02]}  h6 {[%clk 0:02:54]} 8. Bh4 {[%clk 0:03:01]}  Bg4 {[%clk 0:02:52]} 9. c3 {[%clk 0:03:00]}  Nbd7 {[%clk 0:02:44]} 10. Nbd2 {[%clk 0:03:00]}  c6 {[%clk 0:02:32]} 11. Bg3 {[%clk 0:03:00]}  Bxg3 {[%clk 0:02:28]} 12. hxg3 {[%clk 0:03:00]}  Re8 {[%clk 0:02:28]} 13. Qc2 {[%clk 0:03:00]}  Bxf3 {[%clk 0:02:27]} 14. Nxf3 {[%clk 0:02:59]}  Ne4 {[%clk 0:02:26]} 15. Rae1 {[%clk 0:02:57]}  f5 {[%clk 0:02:23]} 16. Re3 {[%clk 0:02:54]}  Qf6 {[%clk 0:02:21]} 17. Rfe1 {[%clk 0:02:52]}  Re7 {[%clk 0:02:18]} 18. Nd2 {[%clk 0:02:46]}  Rae8 {[%clk 0:02:15]} 19. Qd1 {[%clk 0:02:36]}  Qg5 {[%clk 0:02:05]} 20. Qe2 {[%clk 0:02:33]}  Nxg3 {[%clk 0:01:49]} 21. Rxe7 {[%clk 0:02:22]}  Nxe2+ {[%clk 0:01:48]} 22. R7xe2 {[%clk 0:02:20]}  Rxe2 {[%clk 0:01:48]} 23. Rxe2 {[%clk 0:02:16]}  Nf6 {[%clk 0:01:48]} 24. g3 {[%clk 0:02:01]}  Ne4 {[%clk 0:01:46]} 25. Nf3 {[%clk 0:01:54]}  Qc1+ {[%clk 0:01:44]} 26. Kg2 {[%clk 0:01:54]}  Qd1 {[%clk 0:01:32]} 27. Ne5 {[%clk 0:01:52]}  a5 {[%clk 0:01:20]} 28. f3 {[%clk 0:01:45]}  Nd6 {[%clk 0:01:20]} 29. g4 {[%clk 0:01:33]}  Qc1 {[%clk 0:01:10]} 30. gxf5 {[%clk 0:01:25]}  Qg5+ {[%clk 0:01:10]} 31. Kf2 {[%clk 0:01:24]}  Nxf5 {[%clk 0:01:09]} 32. Bxf5 {[%clk 0:01:22]}  Qxf5 {[%clk 0:01:09]} 33. Ng4 {[%clk 0:01:16]}  h5 {[%clk 0:01:06]} 34. Ne3 {[%clk 0:01:16]}  Qg5 {[%clk 0:01:02]} 35. Ng2 {[%clk 0:01:14]}  h4 {[%clk 0:01:01]} 36. Re5 {[%clk 0:01:14]}  Qg3+ {[%clk 0:01:00]} 37. Kf1 {[%clk 0:01:13]}  h3 {[%clk 0:01:00]} 38. Ne1 {[%clk 0:01:08]}  h2 {[%clk 0:00:58]} 39. Rh5 {[%clk 0:01:08]}  Qg1+ {[%clk 0:00:57]} 40. Ke2 {[%clk 0:01:06]}  h1=Q {[%clk 0:00:56]} 41. Rxh1 {[%clk 0:01:07]}  Qxh1 {[%clk 0:00:56]} 42. Nd3 {[%clk 0:01:06]}  Qg2+ {[%clk 0:00:56]} 43. Ke3 {[%clk 0:01:06]}  Qc2 {[%clk 0:00:56]} 44. f4 {[%clk 0:00:59]}  a4 {[%clk 0:00:56]} 45. f5 {[%clk 0:00:57]}  a3 {[%clk 0:00:55]} 46. bxa3 {[%clk 0:00:56]}  Qxc3 {[%clk 0:00:55]} 0-1


[Site "https://www.chess.com"]

[Event "Titled Tuesday Blitz February 22 Early 2022"]
[White "Pultinevicius, Paulius"]
[Black "Tari, Aryan"]
[WhiteFideId "12809390"]
[BlackFideId "1510045"]
[WhiteElo "2413"]
[BlackElo "2567"]
[Result "0-1"]
[Round "04"]
[TimeControl "180+1"]
[Date "2022.02.22"]
[WhiteClock "0:00:02"]
[BlackClock "0:00:03"]

1. d4 {[%clk 0:02:55]}  d5 {[%clk 0:02:59]} 2. c4 {[%clk 0:02:53]}  e6 {[%clk 0:03:00]} 3. Nf3 {[%clk 0:02:53]}  Nf6 {[%clk 0:03:00]} 4. g3 {[%clk 0:02:53]}  Bd6 {[%clk 0:03:00]} 5. Bg2 {[%clk 0:02:32]}  O-O {[%clk 0:03:00]} 6. c5 {[%clk 0:02:28]}  Be7 {[%clk 0:03:00]} 7. O-O {[%clk 0:02:26]}  b6 {[%clk 0:02:57]} 8. cxb6 {[%clk 0:02:26]}  axb6 {[%clk 0:02:56]} 9. Nc3 {[%clk 0:02:26]}  c5 {[%clk 0:02:56]} 10. Bf4 {[%clk 0:02:22]}  Nc6 {[%clk 0:02:51]} 11. Rc1 {[%clk 0:02:21]}  Ba6 {[%clk 0:02:42]} 12. Re1 {[%clk 0:02:18]}  cxd4 {[%clk 0:02:31]} 13. Nxd4 {[%clk 0:02:00]}  Nxd4 {[%clk 0:02:31]} 14. Qxd4 {[%clk 0:02:01]}  Bc5 {[%clk 0:02:32]} 15. Qd2 {[%clk 0:01:52]}  Ng4 {[%clk 0:02:28]} 16. Nd1 {[%clk 0:01:29]}  Bb7 {[%clk 0:01:29]} 17. h3 {[%clk 0:01:25]}  Nf6 {[%clk 0:01:29]} 18. Nc3 {[%clk 0:01:25]}  Qe7 {[%clk 0:01:20]} 19. Be5 {[%clk 0:01:17]}  Nd7 {[%clk 0:01:16]} 20. Bd4 {[%clk 0:01:14]}  h6 {[%clk 0:01:07]} 21. Rcd1 {[%clk 0:01:02]}  Rfd8 {[%clk 0:00:57]} 22. a3 {[%clk 0:00:57]}  Bxd4 {[%clk 0:00:56]} 23. Qxd4 {[%clk 0:00:52]}  Nc5 {[%clk 0:00:57]} 24. Qb4 {[%clk 0:00:50]}  Qc7 {[%clk 0:00:53]} 25. Rc1 {[%clk 0:00:44]}  d4 {[%clk 0:00:48]} 26. Nb5 {[%clk 0:00:42]}  Qe5 {[%clk 0:00:45]} 27. Bxb7 {[%clk 0:00:34]}  Nxb7 {[%clk 0:00:46]} 28. Nc7 {[%clk 0:00:30]}  Rac8 {[%clk 0:00:33]} 29. Qxb6 {[%clk 0:00:30]}  Nd6 {[%clk 0:00:33]} 30. Rc5 {[%clk 0:00:20]}  Qe4 {[%clk 0:00:31]} 31. Qa6 {[%clk 0:00:18]}  Nf5 {[%clk 0:00:27]} 32. Rec1 {[%clk 0:00:17]}  d3 {[%clk 0:00:22]} 33. exd3 {[%clk 0:00:15]}  Qf3 {[%clk 0:00:23]} 34. Nxe6 {[%clk 0:00:13]}  Rxc5 {[%clk 0:00:14]} 35. Rxc5 {[%clk 0:00:13]}  Nxg3 {[%clk 0:00:09]} 36. fxg3 {[%clk 0:00:03]}  Qxg3+ {[%clk 0:00:10]} 37. Kf1 {[%clk 0:00:02]}  Qxh3+ {[%clk 0:00:09]} 38. Kf2 {[%clk 0:00:01]}  fxe6 {[%clk 0:00:09]} 39. Qc6 {[%clk 0:00:01]}  Rf8+ {[%clk 0:00:09]} 40. Ke2 {[%clk 0:00:01]}  Qf1+ {[%clk 0:00:07]} 41. Kd2 {[%clk 0:00:01]}  Rf2+ {[%clk 0:00:07]} 42. Kc3 {[%clk 0:00:02]}  Qc1+ {[%clk 0:00:08]} 43. Kb4 {[%clk 0:00:02]}  Qxb2+ {[%clk 0:00:08]} 44. Ka4 {[%clk 0:00:02]}  Rf4+ {[%clk 0:00:08]} 45. Rc4 {[%clk 0:00:03]}  Qc2+ {[%clk 0:00:07]} 46. Kb5 {[%clk 0:00:02]}  Qxd3 {[%clk 0:00:05]} 47. Qxe6+ {[%clk 0:00:02]}  Kh7 {[%clk 0:00:06]} 48. a4 {[%clk 0:00:01]}  Qb3+ {[%clk 0:00:05]} 49. Kc5 {[%clk 0:00:01]}  Qa3+ {[%clk 0:00:02]} 50. Kb5 {[%clk 0:00:01]}  Qb2+ {[%clk 0:00:02]} 51. Kc5 {[%clk 0:00:02]}  Qf2+ {[%clk 0:00:02]} 52. Kb5 {[%clk 0:00:02]}  Rf5+ {[%clk 0:00:03]} 53. Ka6 {[%clk 0:00:02]}  Rf6 {[%clk 0:00:03]} 0-1


[Site "https://www.chess.com"]

[Event "Titled Tuesday Blitz February 22 Early 2022"]
[White "Rangel, Daniel"]
[Black "Kuzmin, Roman"]
[WhiteFideId "2124475"]
[BlackFideId "44134932"]
[WhiteElo "2187"]
[BlackElo "1978"]
[Result "1-0"]
[Round "04"]
[TimeControl "180+1"]
[Date "2022.02.22"]
[WhiteClock "0:00:12"]
[BlackClock "0:00:05"]

1. b3 {[%clk 0:03:00]}  Nf6 {[%clk 0:02:59]} 2. Bb2 {[%clk 0:03:01]}  e6 {[%clk 0:03:00]} 3. g3 {[%clk 0:03:00]}  d5 {[%clk 0:03:00]} 4. Bg2 {[%clk 0:03:01]}  Be7 {[%clk 0:03:01]} 5. Nf3 {[%clk 0:03:02]}  O-O {[%clk 0:03:02]} 6. O-O {[%clk 0:03:02]}  c5 {[%clk 0:03:02]} 7. d4 {[%clk 0:03:02]}  cxd4 {[%clk 0:03:00]} 8. Nxd4 {[%clk 0:03:03]}  Nc6 {[%clk 0:03:00]} 9. Nd2 {[%clk 0:03:01]}  Nxd4 {[%clk 0:02:54]} 10. Bxd4 {[%clk 0:03:02]}  Qc7 {[%clk 0:02:54]} 11. c4 {[%clk 0:03:00]}  e5 {[%clk 0:02:45]} 12. Bb2 {[%clk 0:02:57]}  d4 {[%clk 0:02:44]} 13. Ne4 {[%clk 0:02:38]}  Nxe4 {[%clk 0:02:37]} 14. Bxe4 {[%clk 0:02:39]}  Be6 {[%clk 0:02:36]} 15. Qd3 {[%clk 0:02:22]}  f5 {[%clk 0:02:31]} 16. Bd5 {[%clk 0:02:12]}  Bxd5 {[%clk 0:02:28]} 17. cxd5 {[%clk 0:02:12]}  Qc5 {[%clk 0:02:23]} 18. e3 {[%clk 0:01:51]}  Qxd5 {[%clk 0:02:03]} 19. exd4 {[%clk 0:01:47]}  Rad8 {[%clk 0:02:00]} 20. Rad1 {[%clk 0:01:28]}  e4 {[%clk 0:02:00]} 21. Qc4 {[%clk 0:01:28]}  Bf6 {[%clk 0:01:49]} 22. f3 {[%clk 0:01:13]}  exf3 {[%clk 0:01:36]} 23. Rxf3 {[%clk 0:01:04]}  b5 {[%clk 0:01:35]} 24. Qxd5+ {[%clk 0:01:00]}  Rxd5 {[%clk 0:01:36]} 25. Rfd3 {[%clk 0:00:53]}  Rc8 {[%clk 0:01:32]} 26. Rc3 {[%clk 0:00:48]}  Re8 {[%clk 0:01:20]} 27. Rcd3 {[%clk 0:00:44]}  b4 {[%clk 0:01:02]} 28. Kf2 {[%clk 0:00:37]}  Re4 {[%clk 0:00:55]} 29. Rc1 {[%clk 0:00:32]}  h5 {[%clk 0:00:48]} 30. Rc4 {[%clk 0:00:26]}  a5 {[%clk 0:00:47]} 31. Rd2 {[%clk 0:00:25]}  h4 {[%clk 0:00:44]} 32. Rc5 {[%clk 0:00:21]}  hxg3+ {[%clk 0:00:18]} 33. hxg3 {[%clk 0:00:21]}  Bxd4+ {[%clk 0:00:05]} 34. Bxd4 {[%clk 0:00:21]}  Rdxd4 {[%clk 0:00:06]} 35. Rxd4 {[%clk 0:00:21]}  Rxd4 {[%clk 0:00:07]} 36. Rxa5 {[%clk 0:00:21]}  g6 {[%clk 0:00:07]} 37. Ke3 {[%clk 0:00:21]}  Rg4 {[%clk 0:00:06]} 38. Kf3 {[%clk 0:00:21]}  Kg7 {[%clk 0:00:06]} 39. Ra4 {[%clk 0:00:21]}  Rd4 {[%clk 0:00:04]} 40. a3 {[%clk 0:00:19]}  Rd3+ {[%clk 0:00:05]} 41. Kf4 {[%clk 0:00:19]}  Rxb3 {[%clk 0:00:05]} 42. axb4 {[%clk 0:00:18]}  Kf6 {[%clk 0:00:03]} 43. Ra6+ {[%clk 0:00:16]}  Kg7 {[%clk 0:00:04]} 44. Rb6 {[%clk 0:00:15]}  Kh6 {[%clk 0:00:04]} 45. g4 {[%clk 0:00:15]}  fxg4 {[%clk 0:00:02]} 46. Kxg4 {[%clk 0:00:16]}  Rb1 {[%clk 0:00:03]} 47. Kf4 {[%clk 0:00:16]}  Rf1+ {[%clk 0:00:03]} 48. Ke3 {[%clk 0:00:16]}  Re1+ {[%clk 0:00:03]} 49. Kd2 {[%clk 0:00:15]}  Rb1 {[%clk 0:00:03]} 50. b5 {[%clk 0:00:15]}  Kh5 {[%clk 0:00:03]} 51. Rb8 {[%clk 0:00:15]}  g5 {[%clk 0:00:03]} 52. b6 {[%clk 0:00:15]}  g4 {[%clk 0:00:03]} 53. b7 {[%clk 0:00:15]}  Kg5 {[%clk 0:00:01]} 54. Rg8+ {[%clk 0:00:14]}  Kh4 {[%clk 0:00:01]} 55. b8=Q {[%clk 0:00:13]}  Rxb8 {[%clk 0:00:02]} 56. Rxb8 {[%clk 0:00:14]}  Kh3 {[%clk 0:00:03]} 57. Ke1 {[%clk 0:00:14]}  g3 {[%clk 0:00:04]} 58. Kf1 {[%clk 0:00:13]}  Kg4 {[%clk 0:00:04]} 59. Kg2 {[%clk 0:00:12]}  Kf4 {[%clk 0:00:05]} 60. Rb4+ {[%clk 0:00:12]} 1-0


[Site "https://www.chess.com"]

[Event "Titled Tuesday Blitz February 22 Early 2022"]
[White "Redzisz, Michal"]
[Black "Johnson, Ben"]
[WhiteFideId "21816107"]
[BlackFideId "2010917"]
[WhiteElo "1961"]
[BlackElo "2199"]
[Result "0-1"]
[Round "04"]
[TimeControl "180+1"]
[Date "2022.02.22"]
[WhiteClock "0:00:01"]
[BlackClock "0:00:15"]

1. d4 {[%clk 0:03:00]}  Nf6 {[%clk 0:02:38]} 2. Bg5 {[%clk 0:02:59]}  d5 {[%clk 0:02:38]} 3. Bxf6 {[%clk 0:02:59]}  exf6 {[%clk 0:02:39]} 4. e3 {[%clk 0:02:57]}  Bd6 {[%clk 0:02:33]} 5. Nd2 {[%clk 0:02:57]}  O-O {[%clk 0:02:33]} 6. c4 {[%clk 0:02:57]}  c6 {[%clk 0:02:33]} 7. g3 {[%clk 0:02:57]}  Be6 {[%clk 0:02:24]} 8. c5 {[%clk 0:02:56]}  Bc7 {[%clk 0:02:24]} 9. Bg2 {[%clk 0:02:56]}  b6 {[%clk 0:02:22]} 10. b4 {[%clk 0:02:56]}  a5 {[%clk 0:02:22]} 11. a3 {[%clk 0:02:56]}  axb4 {[%clk 0:02:21]} 12. axb4 {[%clk 0:02:57]}  Rxa1 {[%clk 0:02:21]} 13. Qxa1 {[%clk 0:02:58]}  Qc8 {[%clk 0:02:15]} 14. Ne2 {[%clk 0:02:50]}  Qa6 {[%clk 0:02:12]} 15. Qb1 {[%clk 0:02:32]}  Nd7 {[%clk 0:02:07]} 16. Nc3 {[%clk 0:02:18]}  Rb8 {[%clk 0:02:02]} 17. b5 {[%clk 0:02:10]}  cxb5 {[%clk 0:01:56]} 18. c6 {[%clk 0:02:11]}  b4 {[%clk 0:01:36]} 19. Bf1 {[%clk 0:01:21]}  Qa5 {[%clk 0:01:15]} 20. Nb5 {[%clk 0:01:20]}  Rc8 {[%clk 0:00:57]} 21. Nb3 {[%clk 0:01:09]}  Qa4 {[%clk 0:00:48]} 22. cxd7 {[%clk 0:00:52]}  Bxd7 {[%clk 0:00:48]} 23. Nxc7 {[%clk 0:00:51]}  Rxc7 {[%clk 0:00:49]} 24. Be2 {[%clk 0:00:50]}  Rc3 {[%clk 0:00:45]} 25. Bd1 {[%clk 0:00:51]}  Qa6 {[%clk 0:00:40]} 26. Nd2 {[%clk 0:00:31]}  Qa5 {[%clk 0:00:33]} 27. O-O {[%clk 0:00:28]}  Bb5 {[%clk 0:00:29]} 28. Re1 {[%clk 0:00:27]}  Bd3 {[%clk 0:00:29]} 29. Qb2 {[%clk 0:00:24]}  Qa3 {[%clk 0:00:28]} 30. Qxa3 {[%clk 0:00:14]}  bxa3 {[%clk 0:00:29]} 31. Bb3 {[%clk 0:00:10]}  b5 {[%clk 0:00:28]} 32. Ra1 {[%clk 0:00:07]}  b4 {[%clk 0:00:23]} 33. f3 {[%clk 0:00:07]}  Bc4 {[%clk 0:00:20]} 34. Bxc4 {[%clk 0:00:01]}  dxc4 {[%clk 0:00:21]} 35. Kf2 {[%clk 0:00:02]}  Rc2 {[%clk 0:00:19]} 36. Ke1 {[%clk 0:00:02]}  a2 {[%clk 0:00:20]} 37. Kd1 {[%clk 0:00:02]}  Rb2 {[%clk 0:00:17]} 38. Nxc4 {[%clk 0:00:01]}  Rxh2 {[%clk 0:00:16]} 39. Nd2 {[%clk 0:00:01]}  Rh1+ {[%clk 0:00:15]} 0-1


[Site "https://www.chess.com"]

[Event "Titled Tuesday Blitz February 22 Early 2022"]
[White "Roman, Rodrigo"]
[Black "Chincholimath, Halsagar"]
[WhiteFideId "3701220"]
[BlackFideId "5022487"]
[WhiteElo "2001"]
[BlackElo "1737"]
[Result "1-0"]
[Round "04"]
[TimeControl "180+1"]
[Date "2022.02.22"]
[WhiteClock "0:00:23"]
[BlackClock "0:00:01"]

1. e4 {[%clk 0:03:00]}  c6 {[%clk 0:02:59]} 2. Ke2 {[%clk 0:01:34]}  d5 {[%clk 0:02:55]} 3. exd5 {[%clk 0:01:35]}  cxd5 {[%clk 0:02:52]} 4. d4 {[%clk 0:01:35]}  Nf6 {[%clk 0:02:48]} 5. Nf3 {[%clk 0:01:36]}  Bg4 {[%clk 0:02:44]} 6. c3 {[%clk 0:01:37]}  e6 {[%clk 0:02:36]} 7. Bf4 {[%clk 0:01:34]}  Nc6 {[%clk 0:02:25]} 8. Qb3 {[%clk 0:01:33]}  Bd6 {[%clk 0:02:20]} 9. Qxb7 {[%clk 0:01:23]}  O-O {[%clk 0:02:15]} 10. Qxc6 {[%clk 0:01:15]}  Bxf4 {[%clk 0:02:14]} 11. h3 {[%clk 0:01:12]}  Bh5 {[%clk 0:02:09]} 12. g4 {[%clk 0:01:12]}  Bg6 {[%clk 0:02:07]} 13. Nbd2 {[%clk 0:01:10]}  Rc8 {[%clk 0:01:55]} 14. Qa4 {[%clk 0:01:07]}  Qb6 {[%clk 0:01:39]} 15. Qb3 {[%clk 0:01:03]}  Qa6+ {[%clk 0:01:32]} 16. Ke1 {[%clk 0:01:02]}  Bd3 {[%clk 0:01:28]} 17. Bxd3 {[%clk 0:01:01]}  Qxd3 {[%clk 0:01:29]} 18. Qd1 {[%clk 0:00:59]}  Rb8 {[%clk 0:01:20]} 19. Rb1 {[%clk 0:00:58]}  Ne4 {[%clk 0:01:17]} 20. Nxe4 {[%clk 0:00:48]}  Qxe4+ {[%clk 0:01:16]} 21. Kf1 {[%clk 0:00:48]}  f5 {[%clk 0:01:00]} 22. Kg1 {[%clk 0:00:36]}  fxg4 {[%clk 0:00:58]} 23. hxg4 {[%clk 0:00:36]}  Bd6 {[%clk 0:00:44]} 24. Ng5 {[%clk 0:00:28]}  Qf4 {[%clk 0:00:41]} 25. Nh3 {[%clk 0:00:28]}  Qe4 {[%clk 0:00:32]} 26. Ng5 {[%clk 0:00:29]}  Qf4 {[%clk 0:00:30]} 27. Nh3 {[%clk 0:00:29]}  Qf6 {[%clk 0:00:26]} 28. Qe2 {[%clk 0:00:27]}  h6 {[%clk 0:00:22]} 29. Re1 {[%clk 0:00:27]}  Qg6 {[%clk 0:00:21]} 30. Qxe6+ {[%clk 0:00:25]}  Qxe6 {[%clk 0:00:17]} 31. Rxe6 {[%clk 0:00:26]}  Bc7 {[%clk 0:00:13]} 32. Re2 {[%clk 0:00:27]}  Rf3 {[%clk 0:00:11]} 33. Kg2 {[%clk 0:00:27]}  Rbf8 {[%clk 0:00:10]} 34. Rhe1 {[%clk 0:00:28]}  Kh7 {[%clk 0:00:09]} 35. Re7 {[%clk 0:00:28]}  Bd6 {[%clk 0:00:08]} 36. Rd7 {[%clk 0:00:29]}  Bb8 {[%clk 0:00:05]} 37. Ree7 {[%clk 0:00:30]}  Rg8 {[%clk 0:00:03]} 38. Rxd5 {[%clk 0:00:29]}  Rf6 {[%clk 0:00:01]} 39. g5 {[%clk 0:00:30]}  Rg6 {[%clk 0:00:01]} 40. Kf3 {[%clk 0:00:23]}  hxg5 {[%clk 0:00:01]} 41. Nxg5+ {[%clk 0:00:23]} 1-0


[Site "https://www.chess.com"]

[Event "Titled Tuesday Blitz February 22 Early 2022"]
[White "Rustemov, Alexander"]
[Black "Wagner, Dinara"]
[WhiteFideId "4119002"]
[BlackFideId "24157570"]
[WhiteElo "2715"]
[BlackElo "2216"]
[Result "1-0"]
[Round "04"]
[TimeControl "180+1"]
[Date "2022.02.22"]
[WhiteClock "0:00:15"]
[BlackClock "0:00:05"]

1. d4 {[%clk 0:03:00]}  Nf6 {[%clk 0:02:54]} 2. c4 {[%clk 0:03:00]}  e6 {[%clk 0:02:54]} 3. Nf3 {[%clk 0:03:00]}  d5 {[%clk 0:02:55]} 4. Nc3 {[%clk 0:02:59]}  dxc4 {[%clk 0:02:55]} 5. e4 {[%clk 0:02:59]}  Bb4 {[%clk 0:02:51]} 6. Bg5 {[%clk 0:02:58]}  h6 {[%clk 0:02:51]} 7. Bxf6 {[%clk 0:02:57]}  Qxf6 {[%clk 0:02:51]} 8. Bxc4 {[%clk 0:02:57]}  c5 {[%clk 0:02:52]} 9. O-O {[%clk 0:02:57]}  cxd4 {[%clk 0:02:50]} 10. e5 {[%clk 0:02:56]}  Qd8 {[%clk 0:02:49]} 11. Ne4 {[%clk 0:02:56]}  Nc6 {[%clk 0:02:40]} 12. Qe2 {[%clk 0:02:55]}  Qa5 {[%clk 0:02:26]} 13. a3 {[%clk 0:02:50]}  Be7 {[%clk 0:02:21]} 14. b4 {[%clk 0:02:46]}  Qc7 {[%clk 0:02:14]} 15. Ng3 {[%clk 0:02:45]}  Bd7 {[%clk 0:02:09]} 16. Bd3 {[%clk 0:02:42]}  g5 {[%clk 0:02:02]} 17. h3 {[%clk 0:02:27]}  h5 {[%clk 0:01:59]} 18. Rfe1 {[%clk 0:02:06]}  g4 {[%clk 0:01:03]} 19. hxg4 {[%clk 0:02:06]}  hxg4 {[%clk 0:01:04]} 20. Nh2 {[%clk 0:02:06]}  Rg8 {[%clk 0:00:59]} 21. Rac1 {[%clk 0:02:03]}  a6 {[%clk 0:00:59]} 22. Nxg4 {[%clk 0:02:01]}  Qd8 {[%clk 0:00:54]} 23. Ne4 {[%clk 0:01:56]}  Rxg4 {[%clk 0:00:36]} 24. Qxg4 {[%clk 0:01:54]}  Nxe5 {[%clk 0:00:36]} 25. Qg8+ {[%clk 0:01:52]}  Bf8 {[%clk 0:00:37]} 26. Nd6+ {[%clk 0:01:45]}  Ke7 {[%clk 0:00:37]} 27. Nxb7 {[%clk 0:01:24]}  Qb8 {[%clk 0:00:28]} 28. Nc5 {[%clk 0:01:20]}  Bh6 {[%clk 0:00:17]} 29. Qxb8 {[%clk 0:01:10]}  Rxb8 {[%clk 0:00:18]} 30. Rcd1 {[%clk 0:01:07]}  Nxd3 {[%clk 0:00:12]} 31. Rxd3 {[%clk 0:01:07]}  Bb5 {[%clk 0:00:12]} 32. Rxd4 {[%clk 0:01:06]}  Rc8 {[%clk 0:00:11]} 33. Red1 {[%clk 0:00:52]}  Bg7 {[%clk 0:00:10]} 34. Rd6 {[%clk 0:00:49]}  Be5 {[%clk 0:00:10]} 35. Rb6 {[%clk 0:00:47]}  Rh8 {[%clk 0:00:10]} 36. g3 {[%clk 0:00:42]}  Bb2 {[%clk 0:00:06]} 37. a4 {[%clk 0:00:40]}  Be8 {[%clk 0:00:06]} 38. Rxa6 {[%clk 0:00:37]}  Bc3 {[%clk 0:00:07]} 39. Rb6 {[%clk 0:00:36]}  Bxb4 {[%clk 0:00:06]} 40. Rxb4 {[%clk 0:00:36]}  Bc6 {[%clk 0:00:07]} 41. Ne4 {[%clk 0:00:27]}  f5 {[%clk 0:00:07]} 42. Re1 {[%clk 0:00:16]}  Bxe4 {[%clk 0:00:06]} 43. Rbxe4 {[%clk 0:00:16]}  fxe4 {[%clk 0:00:07]} 44. Rxe4 {[%clk 0:00:17]}  Ra8 {[%clk 0:00:07]} 45. Kg2 {[%clk 0:00:17]}  Kf6 {[%clk 0:00:08]} 46. g4 {[%clk 0:00:16]}  Ra5 {[%clk 0:00:07]} 47. f4 {[%clk 0:00:16]}  Rc5 {[%clk 0:00:06]} 48. Kf3 {[%clk 0:00:15]}  Rc3+ {[%clk 0:00:07]} 49. Re3 {[%clk 0:00:15]}  Rc4 {[%clk 0:00:05]} 50. Ra3 {[%clk 0:00:15]}  Rc6 {[%clk 0:00:06]} 51. a5 {[%clk 0:00:15]}  Ra6 {[%clk 0:00:06]} 52. Ke4 {[%clk 0:00:15]}  Kg6 {[%clk 0:00:06]} 53. Kd4 {[%clk 0:00:15]}  Kf6 {[%clk 0:00:07]} 54. Kc5 {[%clk 0:00:15]}  e5 {[%clk 0:00:07]} 55. Kb5 {[%clk 0:00:15]}  Ra8 {[%clk 0:00:05]} 56. fxe5+ {[%clk 0:00:15]} 1-0


[Site "https://www.chess.com"]

[Event "Titled Tuesday Blitz February 22 Early 2022"]
[White "Samadov, Read"]
[Black "Eynullayev, Atilla"]
[WhiteFideId "13417444"]
[BlackFideId "13413570"]
[WhiteElo "2805"]
[BlackElo "2550"]
[Result "1-0"]
[Round "04"]
[TimeControl "180+1"]
[Date "2022.02.22"]
[WhiteClock "0:00:04"]
[BlackClock "0:00:03"]

1. d4 {[%clk 0:03:00]}  Nf6 {[%clk 0:03:00]} 2. c4 {[%clk 0:03:01]}  e6 {[%clk 0:03:00]} 3. Nf3 {[%clk 0:02:59]}  d5 {[%clk 0:03:00]} 4. g3 {[%clk 0:02:58]}  Be7 {[%clk 0:02:57]} 5. Bg2 {[%clk 0:02:57]}  O-O {[%clk 0:02:57]} 6. O-O {[%clk 0:02:58]}  dxc4 {[%clk 0:02:58]} 7. Qc2 {[%clk 0:02:58]}  a6 {[%clk 0:02:58]} 8. a4 {[%clk 0:02:58]}  Bd7 {[%clk 0:02:58]} 9. Qxc4 {[%clk 0:02:59]}  Bc6 {[%clk 0:02:59]} 10. Bg5 {[%clk 0:02:59]}  Bd5 {[%clk 0:02:58]} 11. Qc2 {[%clk 0:02:58]}  Be4 {[%clk 0:02:54]} 12. Qc1 {[%clk 0:02:58]}  Nbd7 {[%clk 0:02:51]} 13. Nc3 {[%clk 0:02:57]}  Bg6 {[%clk 0:02:51]} 14. Bxf6 {[%clk 0:02:28]}  Nxf6 {[%clk 0:02:45]} 15. Rd1 {[%clk 0:02:28]}  c6 {[%clk 0:02:43]} 16. Ne5 {[%clk 0:02:15]}  a5 {[%clk 0:02:42]} 17. e4 {[%clk 0:02:08]}  Bb4 {[%clk 0:02:37]} 18. Qe3 {[%clk 0:02:07]}  Bh5 {[%clk 0:02:28]} 19. Rd2 {[%clk 0:02:00]}  Qc7 {[%clk 0:02:23]} 20. Rc1 {[%clk 0:01:44]}  Rac8 {[%clk 0:02:15]} 21. Rdc2 {[%clk 0:01:31]}  Qb6 {[%clk 0:02:07]} 22. h3 {[%clk 0:01:27]}  Rfd8 {[%clk 0:02:02]} 23. g4 {[%clk 0:01:23]}  Bg6 {[%clk 0:02:01]} 24. Ne2 {[%clk 0:01:18]}  Nd7 {[%clk 0:01:29]} 25. Nd3 {[%clk 0:01:06]}  e5 {[%clk 0:01:20]} 26. Nxb4 {[%clk 0:00:50]}  Qxb4 {[%clk 0:00:57]} 27. d5 {[%clk 0:00:44]}  Qxa4 {[%clk 0:00:52]} 28. Nc3 {[%clk 0:00:34]}  Qb4 {[%clk 0:00:49]} 29. dxc6 {[%clk 0:00:33]}  bxc6 {[%clk 0:00:48]} 30. Nd5 {[%clk 0:00:32]}  Qd6 {[%clk 0:00:36]} 31. Rxc6 {[%clk 0:00:30]}  Rxc6 {[%clk 0:00:30]} 32. Rxc6 {[%clk 0:00:30]}  Qb8 {[%clk 0:00:24]} 33. h4 {[%clk 0:00:26]}  f6 {[%clk 0:00:13]} 34. h5 {[%clk 0:00:22]}  Bf7 {[%clk 0:00:12]} 35. h6 {[%clk 0:00:18]}  Bxd5 {[%clk 0:00:10]} 36. exd5 {[%clk 0:00:18]}  g6 {[%clk 0:00:07]} 37. d6 {[%clk 0:00:15]}  Kf8 {[%clk 0:00:05]} 38. Rc7 {[%clk 0:00:13]}  Qb4 {[%clk 0:00:04]} 39. Rc6 {[%clk 0:00:07]}  Qxg4 {[%clk 0:00:04]} 40. Qa7 {[%clk 0:00:06]}  Qd1+ {[%clk 0:00:04]} 41. Kh2 {[%clk 0:00:06]}  Qh5+ {[%clk 0:00:05]} 42. Bh3 {[%clk 0:00:07]}  Qxh6 {[%clk 0:00:04]} 43. Qc7 {[%clk 0:00:07]}  Qf4+ {[%clk 0:00:04]} 44. Kg1 {[%clk 0:00:07]}  Ke8 {[%clk 0:00:04]} 45. Bxd7+ {[%clk 0:00:06]}  Rxd7 {[%clk 0:00:05]} 46. Qc8+ {[%clk 0:00:06]}  Rd8 {[%clk 0:00:05]} 47. Qe6+ {[%clk 0:00:06]}  Kf8 {[%clk 0:00:05]} 48. Qe7+ {[%clk 0:00:07]}  Kg8 {[%clk 0:00:06]} 49. Qxd8+ {[%clk 0:00:08]}  Kg7 {[%clk 0:00:07]} 50. Qe7+ {[%clk 0:00:08]}  Kh6 {[%clk 0:00:07]} 51. Qf8+ {[%clk 0:00:08]}  Kg5 {[%clk 0:00:07]} 52. Rc3 {[%clk 0:00:05]}  h5 {[%clk 0:00:02]} 53. Rg3+ {[%clk 0:00:05]}  Kf5 {[%clk 0:00:03]} 54. d7 {[%clk 0:00:05]}  Qc1+ {[%clk 0:00:03]} 55. Kg2 {[%clk 0:00:04]}  Qc6+ {[%clk 0:00:02]} 56. Rf3+ {[%clk 0:00:04]}  Kg4 {[%clk 0:00:02]} 57. Qxf6 {[%clk 0:00:05]}  Qxd7 {[%clk 0:00:03]} 58. Rg3# {[%clk 0:00:04]} 1-0


[Site "https://www.chess.com"]